fUSD/lending_fUSD_20251102
["ID","MTS","AMOUNT","RATE_DAILY","PERIOD"]
[392867396,1762087041233,500.0,0.00011015,2]
[392867397,1762087041350,500.0,0.00011015,2]
[392867398,1762087041403,500.0,0.00011015,2]
[392867399,1762087041454,500.0,0.00011015,2]
[392867400,1762087041522,500.0,0.00011015,2]
[392867401,1762087041735,500.0,0.00011015,2]
[392867402,1762087042077,500.0,0.00011015,2]
[392867403,1762087042448,561.23912027,0.00011015,2]
[392867406,1762087043882,300.0,0.00014999,4]
[392867407,1762087044126,450.0,0.00014999,6]
[392867408,1762087044367,600.0,0.00014999,8]
[392867409,1762087044600,750.0,0.00014999,10]
[392867410,1762087045050,900.0,0.00014999,12]
[392867411,1762087045132,1050.0,0.00014999,14]
[392867412,1762087045322,1200.0,0.00014999,16]
[392867413,1762087045468,500.0,0.00012012,2]
[392867414,1762087045563,1350.0,0.00014999,18]
[392867415,1762087045799,500.0,0.00012012,2]
[392867416,1762087045841,1452.54304087,0.00014999,20]
[392867417,1762087046121,961.8190546,0.00011015,2]
[392867418,1762087047673,1079.45039557,0.00014998,5]
[392867419,1762087048997,500.0,0.00012012,2]
[392867420,1762087049357,500.0,0.00012012,2]
[392867421,1762087049693,25.16069153,0.00012012,2]
[392867422,1762087049716,474.83930847,0.00012012,2]
[392867423,1762087050057,500.0,0.00012012,2]
[392867424,1762087050405,500.0,0.00012012,2]
[392867425,1762087050543,500.0,0.00012012,2]
[392867426,1762087051458,500.0,0.00012012,2]
[392867427,1762087051496,505.12178378,0.00011015,2]
[392867428,1762087051554,500.0,0.00012012,2]
[392867429,1762087051636,509.32199567,0.00011015,2]
[392867430,1762087051709,500.0,0.00012012,2]
[392867431,1762087051805,500.0,0.00012012,2]
[392867432,1762087051982,500.0,0.00012012,2]
[392867433,1762087052298,500.0,0.00012012,2]
[392867434,1762087052627,500.0,0.00011015,2]
[392867435,1762087053016,500.0,0.00011015,2]
[392867436,1762087053495,500.0,0.00011015,2]
[392867437,1762087053851,500.0,0.00011015,2]
[392867438,1762087054212,500.0,0.00011015,2]
[392867439,1762087054240,-221.4657106,0.0001469,2]
[392867440,1762087054567,332.5342894,0.00011015,2]
[392867441,1762087054591,167.4657106,0.00011015,2]
[392867442,1762087054902,500.0,0.00011015,2]
[392867443,1762087055243,500.0,0.00011015,2]
[392867444,1762087055614,757.83355719,0.00011015,2]
[392867448,1762087130971,560.26695276,0.00013864,2]
[392867449,1762087130994,939.73304724,0.00013864,2]
[392867472,1762087139546,-201.56852478,0.00014674,2]
[392867514,1762087208145,488.21,0.00013852,2]
[392867526,1762087224985,500.0,0.000146,2]
[392867528,1762087324668,642.0,0.00014432,2]
[392867529,1762087329591,642.0,0.00014415,2]
[392867530,1762087334562,642.0,0.00014503,2]
[392867531,1762087342152,800.0,0.00012012,2]
[392867532,1762087342502,800.0,0.00012012,2]
[392867533,1762087342967,800.0,0.00012012,2]
[392867534,1762087343307,800.0,0.00012012,2]
[392867535,1762087343656,800.0,0.00012012,2]
[392867536,1762087343980,800.0,0.00012012,2]
[392867537,1762087344028,642.0,0.00014385,2]
[392867538,1762087344367,800.0,0.00012012,2]
[392867539,1762087344706,800.0,0.00012012,2]
[392867540,1762087345045,532.01,0.00012012,2]
[392867541,1762087345069,267.99,0.00012012,2]
[392867542,1762087345410,800.0,0.00012012,2]
[392867543,1762087345768,800.0,0.00012012,2]
[392867544,1762087345803,579.25589927,0.00012012,2]
[392867545,1762087346158,800.0,0.00012012,2]
[392867546,1762087346493,800.0,0.00012012,2]
[392867547,1762087346868,800.0,0.00012012,2]
[392867548,1762087347228,800.0,0.00012012,2]
[392867549,1762087347561,800.0,0.00011015,2]
[392867550,1762087347876,800.0,0.00011015,2]
[392867551,1762087349013,800.0,0.00011015,2]
[392867552,1762087349146,500.0,0.00012012,2]
[392867553,1762087349188,800.0,0.00011015,2]
[392867554,1762087349250,500.0,0.00012012,2]
[392867555,1762087349301,152.76410073,0.00012012,2]
[392867556,1762087349327,347.23589927,0.00012012,2]
[392867557,1762087349367,642.0,0.00014436,2]
[392867558,1762087349415,500.0,0.00012012,2]
[392867559,1762087349470,500.0,0.00012012,2]
[392867560,1762087349632,500.0,0.00012012,2]
[392867561,1762087349669,500.0,0.00012012,2]
[392867562,1762087349707,800.0,0.00011015,2]
[392867563,1762087349941,500.0,0.00011015,2]
[392867564,1762087350007,500.0,0.00011015,2]
[392867565,1762087350080,800.0,0.00011015,2]
[392867566,1762087350298,571.93881778,0.00011015,2]
[392867567,1762087350335,500.0,0.00012012,2]
[392867568,1762087350389,500.0,0.00011015,2]
[392867569,1762087350440,800.0,0.00011015,2]
[392867570,1762087350703,500.60685629,0.00011015,2]
[392867571,1762087350740,500.0,0.00011015,2]
[392867572,1762087350822,800.0,0.00011015,2]
[392867573,1762087351149,238.22842666,0.00011015,2]
[392867574,1762087351174,561.77157334,0.00011015,2]
[392867575,1762087351476,800.0,0.00011015,2]
[392867576,1762087351829,800.0,0.00011015,2]
[392867577,1762087352180,800.0,0.00011015,2]
[392867578,1762087352525,800.0,0.00011015,2]
[392867579,1762087352871,801.36848615,0.00011015,2]
[392867580,1762087353209,500.0,0.00012012,2]
[392867581,1762087353358,500.0,0.00012012,2]
[392867582,1762087353440,500.0,0.00012012,2]
[392867583,1762087353623,500.0,0.00012012,2]
[392867584,1762087353769,500.0,0.00012012,2]
[392867585,1762087353966,851.46097798,0.00011015,2]
[392867586,1762087354127,500.0,0.00012012,2]
[392867587,1762087354170,500.0,0.00012012,2]
[392867588,1762087354495,500.0,0.00012012,2]
[392867589,1762087354538,500.0,0.00012012,2]
[392867590,1762087354819,85.40896253,0.00014515,2]
[392867591,1762087354845,556.59103747,0.00014515,2]
[392867592,1762087354880,500.0,0.00012012,2]
[392867593,1762087354915,500.0,0.00012012,2]
[392867594,1762087355232,500.0,0.00012012,2]
[392867595,1762087355557,500.0,0.00012012,2]
[392867596,1762087355636,500.0,0.00011015,2]
[392867597,1762087355883,500.0,0.00011015,2]
[392867598,1762087355993,500.0,0.00011015,2]
[392867599,1762087356239,500.0,0.00011015,2]
[392867600,1762087356348,500.0,0.00011015,2]
[392867601,1762087356622,500.0,0.00011015,2]
[392867602,1762087356681,500.0,0.00011015,2]
[392867603,1762087356923,500.0,0.00011015,2]
[392867604,1762087357372,500.0,0.00011015,2]
[392867605,1762087357747,613.80193287,0.00011015,2]
[392867607,1762087359952,642.0,0.00014627,2]
[392867608,1762087362793,229.0652,0.00014595,2]
[392867609,1762087364798,642.0,0.00014557,2]
[392867610,1762087370647,642.0,0.00014398,2]
[392867611,1762087382115,997.74,0.00013817,2]
[392867612,1762087390592,188.14826826,0.0001459,2]
[392867615,1762087406183,1000.0,0.000145,2]
[392867616,1762087420693,300.0,0.000142,2]
[392867620,1762087514347,150.0,0.00013488,2]
[392867621,1762087514395,150.0,0.00013862,2]
[392867622,1762087514457,150.0,0.00014237,2]
[392867623,1762087514547,150.0,0.00014612,2]
[392867624,1762087514735,150.0,0.00013488,2]
[392867625,1762087514795,150.0,0.00013862,2]
[392867626,1762087514873,150.0,0.00014237,2]
[392867627,1762087514942,150.0,0.00014612,2]
[392867628,1762087515086,151.25873288,0.00013488,2]
[392867629,1762087515201,150.0,0.00013488,2]
[392867630,1762087515243,150.0,0.00013987,2]
[392867631,1762087515298,150.0,0.00014487,2]
[392867632,1762087517628,150.24066873,0.00013488,2]
[392867633,1762087520041,150.0,0.00013488,2]
[392867634,1762087520094,143.75519726,0.00013862,2]
[392867635,1762087520122,6.24480274,0.00013862,2]
[392867636,1762087520175,150.0,0.00014237,2]
[392867637,1762087520223,150.0,0.00014612,2]
[392867638,1762087521646,150.0,0.00013488,2]
[392867639,1762087521718,150.0,0.00013987,2]
[392867640,1762087521760,150.0,0.00014487,2]
[392867641,1762087521933,150.0,0.00013488,2]
[392867642,1762087523314,150.0,0.00013488,2]
[392867643,1762087523361,150.0,0.00014237,2]
[392867644,1762087527014,150.0,0.00013488,2]
[392867645,1762087527064,150.0,0.00014237,2]
[392867646,1762087533540,151.50504735,0.00013488,2]
[392867647,1762087534612,150.0,0.00013488,2]
[392867648,1762087534764,150.0,0.00013488,2]
[392867649,1762087534839,150.0,0.00013987,2]
[392867650,1762087534904,150.0,0.00014487,2]
[392867651,1762087535071,150.0,0.00013488,2]
[392867652,1762087535119,150.0,0.00013987,2]
[392867653,1762087535182,150.0,0.00014487,2]
[392867654,1762087537670,150.0,0.00013488,2]
[392867655,1762087537726,150.0,0.00014237,2]
[392867656,1762087538166,150.0,0.00013488,2]
[392867657,1762087538245,150.0,0.00013862,2]
[392867658,1762087538314,150.0,0.00014237,2]
[392867659,1762087538429,150.0,0.00014612,2]
[392867660,1762087580728,150.0,0.00013817,2]
[392867661,1762087580911,150.0,0.00013817,120]
[392867662,1762087605002,240.0,0.00014534,2]
[392867663,1762087608309,4268.91,0.00013816,2]
[392867665,1762087628021,206.84,0.00013814,2]
[392867666,1762087641876,500.0,0.00012012,2]
[392867667,1762087642209,500.0,0.00012012,2]
[392867668,1762087642668,500.0,0.00012012,2]
[392867669,1762087642969,26.51014991,0.00011015,2]
[392867670,1762087642992,473.48985009,0.00011015,2]
[392867671,1762087643304,500.0,0.00011015,2]
[392867672,1762087643687,609.94902844,0.00011015,2]
[392867673,1762087644376,500.0,0.00012012,2]
[392867674,1762087644750,885.35192406,0.00011015,2]
[392867676,1762087737545,150.0,0.00014238,2]
[392867685,1762087831891,-250.0,0.00014681,2]
[392867686,1762087831901,-300.0,0.00014681,2]
[392867687,1762087831910,-195.0,0.00014681,2]
[392867688,1762087831920,-261.40211524,0.00014682,2]
[392867689,1762087831931,-300.0,0.00014682,2]
[392867690,1762087831941,-1000.0,0.000147,2]
[392867691,1762087831951,-576.0,0.000147,2]
[392867692,1762087831960,-245.0,0.00014713,2]
[392867693,1762087831969,-1000.0,0.00014726,2]
[392867694,1762087831979,-1000.0,0.00014735,2]
[392867695,1762087831989,-1000.0,0.00014737,2]
[392867696,1762087831998,-1000.0,0.0001474,2]
[392867697,1762087832007,-240.0,0.00014742,2]
[392867698,1762087832016,-1200.0,0.00014755,2]
[392867699,1762087832026,-239.84119403,0.00014756,2]
[392867700,1762087832035,-1000.0,0.00014762,2]
[392867701,1762087832045,-300.0,0.00014762,2]
[392867702,1762087832054,-1000.0,0.00014763,2]
[392867703,1762087832063,-1149.33819149,0.00014765,2]
[392867704,1762087832072,-150.0,0.00014766,2]
[392867705,1762087832082,-496.47127164,0.00014771,2]
[392867706,1762087832091,-1000.0,0.00014774,2]
[392867707,1762087832101,-8847.2613,0.0001478,2]
[392867708,1762087832110,-936.4952,0.0001478,2]
[392867709,1762087832119,-968.0827,0.0001478,2]
[392867710,1762087832128,-353.0594,0.0001478,2]
[392867711,1762087832137,-162.73072602,0.0001478,2]
[392867712,1762087832147,-1000.0,0.00014785,2]
[392867713,1762087832156,-262.2,0.00014785,2]
[392867714,1762087832165,-1000.0,0.00014786,2]
[392867715,1762087832175,-150.0,0.00014789,2]
[392867716,1762087832184,-1000.0,0.00014793,2]
[392867717,1762087832195,-162.73072597,0.00014797,2]
[392867718,1762087832205,-17048.4104548,0.000148,2]
[392867720,1762087832241,-17900.5342583,0.000148,2]
[392867721,1762087832252,-500.0,0.000148,2]
[392867722,1762087832262,-1352.625,0.000148,2]
[392867723,1762087832272,-177.25624364,0.000148,2]
[392867725,1762087832281,-1011.0,0.000148,2]
[392867727,1762087832291,-1000.0,0.00014803,2]
[392867729,1762087832301,-162.73072597,0.00014814,2]
[392867731,1762087832310,-1000.0,0.00014819,2]
[392867733,1762087832320,-162.73072597,0.00014831,2]
[392867735,1762087832330,-1425.0,0.00014847,2]
[392867737,1762087832339,-162.73072597,0.00014849,2]
[392867739,1762087832348,-1000.0,0.00014849,2]
[392867741,1762087832357,-445.55346,0.0001485,2]
[392867743,1762087832366,-1000.0,0.00014853,2]
[392867745,1762087832376,-154.16457811,0.00014864,2]
[392867747,1762087832385,-162.73072597,0.00014866,2]
[392867749,1762087832394,-150.0,0.00014869,2]
[392867751,1762087832404,-15165.69,0.0001487,2]
[392867753,1762087832413,-500.0,0.00014873,2]
[392867755,1762087832423,-473.75758089,0.00014873,2]
[392867757,1762087832432,-162.09669166,0.00014879,2]
[392867759,1762087832442,-500.0,0.00014879,2]
[392867761,1762087832451,-486.29320406,0.00014879,2]
[392867763,1762087832460,-294.39182298,0.00014879,2]
[392867765,1762087832471,-219.58151979,0.00014879,2]
[392867767,1762087832483,-355.72871806,0.00014879,2]
[392867769,1762087832494,-214.50067321,0.00014879,2]
[392867771,1762087832502,-156687.02049316,0.0001488,2]
[392867773,1762087832514,-1254.41808677,0.0001488,2]
[392867775,1762087838003,-1415.28346938,0.0001488,2]
[392867776,1762087838118,-16260.58899111,0.0001488,2]
[392867777,1762087838130,-10231.94218752,0.0001488,2]
[392867784,1762087840022,-232.30889131,0.00014879,2]
[392867785,1762087840033,-500.0,0.00014879,2]
[392867786,1762087840047,-334.70754902,0.00014879,2]
[392867787,1762087840057,-218.37084406,0.00014879,2]
[392867788,1762087840067,-78869.22437206,0.0001488,2]
[392867789,1762087840077,-200.0,0.0001488,2]
[392867790,1762087840086,-1000.0,0.00014881,2]
[392867791,1762087840096,-162.73072597,0.00014883,2]
[392867792,1762087840106,-154.6549851,0.000149,2]
[392867793,1762087840116,-154.16457811,0.000149,2]
[392867794,1762087840126,-515.46897696,0.000149,2]
[392867795,1762087840136,-5000.0,0.000149,2]
[392867796,1762087840146,-162.73072597,0.000149,2]
[392867797,1762087840155,-150.0,0.00014901,2]
[392867798,1762087840165,-1000.0,0.00014901,2]
[392867799,1762087840175,-1105.98627234,0.00014907,2]
[392867800,1762087840184,-240.0,0.00014908,2]
[392867801,1762087840195,-1425.0,0.00014913,2]
[392867802,1762087840205,-292.86446234,0.00014922,2]
[392867803,1762087840215,-1000.0,0.00014924,2]
[392867804,1762087840225,-240.0,0.00014934,2]
[392867805,1762087840239,-1425.0,0.0001494,2]
[392867806,1762087840249,-477.45087779,0.00014955,2]
[392867807,1762087840258,-1425.0,0.00014961,2]
[392867808,1762087840268,-245.0,0.00014964,2]
[392867809,1762087840278,-458.73967087,0.00014973,2]
[392867810,1762087840287,-500.0,0.00014973,2]
[392867811,1762087840297,-500.0,0.00014973,2]
[392867812,1762087840306,-500.0,0.00014973,2]
[392867813,1762087840316,-500.0,0.00014973,2]
[392867814,1762087840326,-500.0,0.00014973,2]
[392867815,1762087840335,-500.74682065,0.00014973,2]
[392867816,1762087840345,-501.84277717,0.00014973,2]
[392867817,1762087840355,-500.0,0.00014973,2]
[392867818,1762087840364,-500.0,0.00014973,2]
[392867819,1762087840374,-630.72862855,0.00014973,2]
[392867820,1762087840384,-500.0,0.00014973,2]
[392867821,1762087840394,-500.0,0.00014973,2]
[392867822,1762087840404,-500.0,0.00014973,2]
[392867823,1762087840415,-500.0,0.00014973,2]
[392867824,1762087840430,-500.0,0.00014973,2]
[392867825,1762087840442,-445.55347,0.0001498,2]
[392867826,1762087840452,-150.0,0.00014986,2]
[392867827,1762087840462,-150.0,0.00014986,2]
[392867828,1762087840471,-150.0,0.00014986,2]
[392867829,1762087840483,-151.70335111,0.00014986,2]
[392867830,1762087840493,-150.0,0.00014986,2]
[392867831,1762087840502,-150.0,0.00014986,2]
[392867832,1762087840512,-150.93936813,0.00014986,2]
[392867833,1762087840521,-150.0,0.00014986,2]
[392867834,1762087840531,-150.0,0.00014986,2]
[392867835,1762087840540,-150.0,0.00014986,2]
[392867836,1762087840550,-150.00000001,0.00014986,2]
[392867837,1762087840559,-150.0,0.00014986,2]
[392867838,1762087840569,-150.0,0.00014986,2]
[392867839,1762087840579,-150.0,0.0001499,2]
[392867840,1762087840588,-1000.0,0.00014994,2]
[392867841,1762087840598,-48543.6292839,0.00014997,2]
[392867842,1762087840607,-150.0,0.00014997,2]
[392867843,1762087840617,-4792.8779472,0.00014998,2]
[392867844,1762087840630,-193449.97857935,0.00014999,2]
[392867845,1762087840654,-2148.79924965,0.00014999,2]
[392867899,1762087852769,-13020.49417457,0.00014999,2]
[392867900,1762087852780,-39206.41853493,0.00014999,2]
[392867901,1762087852789,-200.0,0.00014999,2]
[392867902,1762087852798,-157.92243557,0.00014999,2]
[392867903,1762087852807,-500.0,0.00014999,2]
[392867904,1762087852816,-272.36750716,0.00014999,2]
[392867905,1762087852825,-150.0,0.00014999,2]
[392867906,1762087852834,-150.0,0.00014999,2]
[392867907,1762087852842,-200.0,0.00014999,2]
[392867908,1762087852851,-200.0,0.00014999,2]
[392867909,1762087852860,-200.0,0.00014999,2]
[392867910,1762087852869,-150.0,0.00014999,2]
[392867911,1762087852878,-200.0,0.00014999,2]
[392867912,1762087852887,-150.0,0.00014999,2]
[392867913,1762087852896,-500.0,0.00014999,2]
[392867914,1762087852907,-151.01895583,0.00014999,2]
[392867915,1762087852917,-155.02782084,0.00014999,2]
[392867916,1762087852926,-150.0,0.00014999,2]
[392867917,1762087852941,-150.0,0.00014999,2]
[392867918,1762087852951,-673.0,0.00014999,2]
[392867919,1762087852961,-150.0,0.00014999,2]
[392867920,1762087852971,-201.87477777,0.00014999,2]
[392867921,1762087852981,-500.0,0.00014999,2]
[392867922,1762087852990,-150.0,0.00014999,2]
[392867923,1762087853000,-9118.19352693,0.00015,2]
[392867924,1762087853077,-1513.78423699,0.00015,2]
[392867925,1762087853110,-466.08003881,0.00015,2]
[392867926,1762087853122,-281.34086353,0.00015,2]
[392867927,1762087853137,-479.09744549,0.00015,2]
[392867928,1762087853148,-315.77500091,0.00015,2]
[392867966,1762088018450,168.0,0.00014554,2]
[392867967,1762088085043,152.0,0.00014844,5]
[392867968,1762088085646,152.0,0.00014468,4]
[392867969,1762088085721,152.0,0.00014093,3]
[392867970,1762088145684,1754.99,0.00014032,2]
[392867988,1762088237528,1000.0,0.00013699,2]
[392868024,1762088364009,216.9840129,0.00014634,2]
[392868040,1762088571008,150.0,0.00013931,2]
[392868048,1762088586503,1000.0,0.00013931,2]
[392868051,1762088733916,200.0,0.00013836,2]
[392868073,1762088854463,166.66,0.00014237,2]
[392868074,1762088893348,473.22176739,0.00014554,2]
[392868116,1762089032533,-160.66350305,0.0001468,2]
[392868117,1762089032542,-224.03090929,0.00014686,2]
[392868119,1762089032555,-302.11749999,0.00014686,2]
[392868126,1762089038075,-1973.85159072,0.00014686,2]
[392868127,1762089038084,-250.0,0.00014687,2]
[392868128,1762089038093,-195.0,0.00014687,2]
[392868129,1762089038102,-160.90697574,0.00014689,2]
[392868130,1762089038112,-134.04024718,0.00014699,2]
[392868131,1762089038291,-1065.95975282,0.00014699,2]
[392868132,1762089038301,-300.0,0.00014699,2]
[392868133,1762089038310,-300.0,0.00014699,2]
[392868134,1762089038320,-1000.0,0.000147,2]
[392868135,1762089038329,-221.6410156,0.00014769,2]
[392868136,1762089038342,-150.0,0.0001477,2]
[392868137,1762089038352,-1383.75,0.00014771,2]
[392868139,1762089038362,-620.0,0.00014771,2]
[392868141,1762089038371,-151.0,0.00014771,2]
[392868143,1762089038380,-151.0,0.00014771,2]
[392868145,1762089038390,-151.0,0.00014771,2]
[392868147,1762089038399,-151.0,0.00014771,2]
[392868149,1762089038408,-151.0,0.00014771,2]
[392868151,1762089038417,-500.0,0.00014771,2]
[392868153,1762089038426,-169.56617779,0.00014771,2]
[392868155,1762089038435,-151.0,0.00014771,2]
[392868157,1762089038444,-500.0,0.00014771,2]
[392868159,1762089038453,-500.0,0.00014771,2]
[392868161,1762089038462,-151.0,0.00014771,2]
[392868163,1762089038472,-240.41932263,0.00014771,2]
[392868165,1762089038481,-151.0,0.00014771,2]
[392868167,1762089038491,-151.0,0.00014771,2]
[392868169,1762089038500,-151.0,0.00014771,2]
[392868171,1762089038511,-151.0,0.00014771,2]
[392868173,1762089038523,-151.0,0.00014771,2]
[392868175,1762089038532,-151.0,0.00014771,2]
[392868177,1762089038541,-151.0,0.00014771,2]
[392868179,1762089038554,-151.0,0.00014771,2]
[392868181,1762089038563,-151.0,0.00014771,2]
[392868183,1762089038572,-509.67990508,0.00014771,2]
[392868185,1762089038581,-151.0,0.00014771,2]
[392868187,1762089038591,-151.0,0.00014771,2]
[392868189,1762089038601,-151.0,0.00014771,2]
[392868191,1762089038609,-151.0,0.00014771,2]
[392868193,1762089038618,-496.47127164,0.00014771,2]
[392868195,1762089038627,-209.40437684,0.00014771,2]
[392868197,1762089038636,-500.0,0.00014773,2]
[392868199,1762089038645,-500.0,0.00014773,2]
[392868201,1762089038655,-500.0,0.00014773,2]
[392868203,1762089038664,-500.0,0.00014773,2]
[392868205,1762089038673,-500.0,0.00014773,2]
[392868207,1762089038682,-500.0,0.00014773,2]
[392868208,1762089038691,-500.0,0.00014773,2]
[392868210,1762089038700,-273.06611256,0.00014779,2]
[392868213,1762089038709,-358.93386693,0.00014779,2]
[392868214,1762089038718,-500.0,0.00014779,2]
[392868217,1762089038727,-153.17193801,0.00014779,2]
[392868219,1762089038737,-10379.19521962,0.00014779,2]
[392868221,1762089038747,-500.0,0.00014779,2]
[392868223,1762089038756,-511.3668177,0.00014779,2]
[392868225,1762089038765,-500.0,0.00014779,2]
[392868227,1762089038775,-500.0,0.00014779,2]
[392868229,1762089038784,-943.11972893,0.0001478,2]
[392868230,1762089038800,-1556.88027107,0.0001478,2]
[392868232,1762089038809,-4656.42176362,0.0001478,2]
[392868234,1762089038820,-39610.13206813,0.0001478,2]
[392868236,1762089038832,-12916.6646498,0.0001478,2]
[392868241,1762089040209,-829.23193505,0.0001478,2]
[392868242,1762089040220,-9010.04620712,0.0001478,2]
[392868243,1762089040232,-1363.68834929,0.0001478,2]
[392868244,1762089040244,-14896.46297549,0.0001478,2]
[392868245,1762089040256,-3829.98099585,0.0001478,2]
[392868246,1762089040267,-14505.43954333,0.0001478,2]
[392868247,1762089040290,-318381.93151232,0.0001478,2]
[392868248,1762089040298,-500.01,0.0001478,2]
[392868249,1762089040308,-2344.72617378,0.000148,2]
[392868250,1762089040316,-1374.0,0.000148,2]
[392868251,1762089040327,-1082.1,0.00014802,2]
[392868252,1762089040336,-783.0,0.00014821,2]
[392868253,1762089040345,-4709.63133,0.0001485,2]
[392868254,1762089040353,-500.0,0.00014879,2]
[392868255,1762089040362,-203.35165968,0.00014879,2]
[392868256,1762089040371,-500.0,0.00014879,2]
[392868257,1762089040380,-500.0,0.00014879,2]
[392868258,1762089040389,-500.0,0.00014879,2]
[392868259,1762089040398,-526.60250163,0.00014879,2]
[392868260,1762089040407,-700.0,0.000149,2]
[392868261,1762089040416,-154.6549851,0.000149,2]
[392868262,1762089040426,-1000.0,0.000149,2]
[392868263,1762089040435,-5000.0,0.000149,2]
[392868264,1762089040443,-427.5956222,0.000149,2]
[392868265,1762089040452,-783.0,0.00014937,2]
[392868266,1762089040462,-168.0,0.0001494,2]
[392868267,1762089040471,-6630.0,0.00014949,2]
[392868268,1762089040480,-2140.0,0.00014949,2]
[392868269,1762089040489,-6468.0,0.00014949,2]
[392868270,1762089040498,-559.0,0.00014949,2]
[392868271,1762089040507,-477.45087779,0.00014955,2]
[392868272,1762089040522,-168.0,0.0001496,2]
[392868273,1762089040531,-212.916,0.00014972,2]
[392868274,1762089040540,-500.0,0.00014973,2]
[392868275,1762089040549,-500.0,0.00014973,2]
[392868276,1762089040559,-500.0,0.00014973,2]
[392868277,1762089040568,-166.37413438,0.00014973,2]
[392868278,1762089040578,-500.0,0.00014973,2]
[392868280,1762089040589,-500.0,0.00014973,2]
[392868282,1762089040598,-500.0,0.00014973,2]
[392868283,1762089040607,-500.89716581,0.00014973,2]
[392868286,1762089040616,-500.0,0.00014973,2]
[392868288,1762089040625,-500.0,0.00014973,2]
[392868289,1762089040635,-500.0,0.00014973,2]
[392868292,1762089040643,-331.33739379,0.00014973,2]
[392868293,1762089040653,-178.35415841,0.00014973,2]
[392868296,1762089040662,-500.0,0.00014973,2]
[392868297,1762089040671,-500.0,0.00014973,2]
[392868300,1762089040681,-500.0,0.00014973,2]
[392868302,1762089040691,-500.0,0.00014973,2]
[392868303,1762089040702,-160.52965077,0.00014973,2]
[392868305,1762089040711,-500.0,0.00014973,2]
[392868307,1762089040721,-551.12807542,0.00014973,2]
[392868309,1762089040732,-500.0,0.00014973,2]
[392868311,1762089040741,-500.0,0.00014973,2]
[392868313,1762089040751,-500.0,0.00014973,2]
[392868315,1762089040760,-555.44934221,0.00014973,2]
[392868317,1762089040769,-500.0,0.00014973,2]
[392868318,1762089040778,-500.0,0.00014973,2]
[392868319,1762089040786,-500.0,0.00014973,2]
[392868320,1762089040795,-500.0,0.00014973,2]
[392868321,1762089040804,-500.0,0.00014973,2]
[392868322,1762089040813,-500.0,0.00014973,2]
[392868323,1762089040822,-160.58956794,0.00014973,2]
[392868324,1762089040833,-500.0,0.00014973,2]
[392868325,1762089040842,-500.0,0.00014973,2]
[392868326,1762089040851,-500.0,0.00014973,2]
[392868327,1762089040860,-500.0,0.00014973,2]
[392868328,1762089040869,-500.0,0.00014973,2]
[392868330,1762089040878,-502.34671415,0.00014973,2]
[392868332,1762089040887,-500.0,0.00014973,2]
[392868334,1762089040897,-500.0,0.00014973,2]